bitfinex/quotes_BTCUSD_20240918
["timestamp","ask_amount","ask_price","bid_price","bid_amount"]
[1726637583902,1.48549178,60458.0,60457.0,0.002823]
[1726637587863,0.55912923,60458.0,60457.0,0.002823]
[1726637588305,0.88993723,60458.0,60457.0,0.002823]
[1726637589024,0.87593723,60458.0,60457.0,0.001823]
[1726637589248,0.88893723,60458.0,60457.0,0.002823]
[1726637589463,0.87893723,60458.0,60457.0,0.001823]
[1726637589923,0.88793723,60458.0,60457.0,0.002823]
[1726637595525,1.21874523,60458.0,60457.0,0.002823]
[1726637599185,0.55712923,60458.0,60457.0,0.002823]
[1726637599610,0.88793723,60458.0,60457.0,0.002823]
[1726637610160,1.21874523,60458.0,60457.0,0.002823]
[1726637619041,1.31844523,60458.0,60457.0,0.002823]
[1726637620135,1.21874523,60458.0,60457.0,0.093823]
[1726637620396,1.21874523,60458.0,60457.0,1.70585332]
[1726637620397,0.04139585,60458.0,60457.0,1.70585332]
[1726637620646,0.04139585,60458.0,60457.0,1.28400575]
[1726637620894,0.04139585,60458.0,60457.0,1.28330319]
[1726637620895,0.022,60458.0,60457.0,1.28330319]
[1726637621113,0.013,60458.0,60457.0,1.18290867]
[1726637621337,0.001646,60462.0,60461.0,0.496186]
[1726637621571,0.001646,60462.0,60461.0,0.65923967]
[1726637622028,0.001646,60462.0,60461.0,0.99003067]
[1726637622271,0.001646,60462.0,60461.0,1.18819725]
[1726637622711,0.001646,60462.0,60461.0,1.51898825]
[1726637623965,0.001646,60462.0,60461.0,1.08873067]
[1726637624182,0.003646,60462.0,60461.0,1.08873067]
[1726637624641,0.001646,60462.0,60461.0,1.08873067]
[1726637625297,0.001646,60462.0,60461.0,1.09173067]
[1726637625531,0.001646,60462.0,60461.0,1.42452167]
[1726637626642,0.001646,60462.0,60461.0,1.42152167]
[1726637626854,0.001646,60462.0,60461.0,1.41952167]
[1726637627102,0.001646,60462.0,60461.0,1.42752167]
[1726637627745,0.001646,60462.0,60461.0,1.50200678]
[1726637627971,0.001646,60462.0,60461.0,1.49800678]
[1726637628509,0.001646,60462.0,60461.0,1.49900678]
[1726637628750,0.001646,60462.0,60461.0,1.47903742]
[1726637629488,0.001646,60462.0,60461.0,1.96479778]
[1726637629716,0.001646,60464.0,60463.0,0.72563658]
[1726637629943,0.001646,60464.0,60463.0,1.55025025]
[1726637630159,0.001646,60464.0,60463.0,1.88103025]
[1726637630600,0.001646,60464.0,60463.0,1.93052412]
[1726637630883,0.001646,60464.0,60463.0,2.10562412]
[1726637631071,0.001646,60464.0,60463.0,1.75147112]
[1726637631333,0.001646,60464.0,60463.0,1.70497725]
[1726637639944,0.001646,60464.0,60463.0,1.00263067]
[1726637640166,0.001646,60464.0,60463.0,0.17139]
[1726637640394,0.01692389,60464.0,60463.0,0.006]
[1726637640620,0.001646,60464.0,60463.0,0.006]
[1726637640836,0.01789559,60464.0,60463.0,0.006]
[1726637641088,0.01789559,60464.0,60463.0,0.17139]
[1726637641323,0.01789559,60464.0,60463.0,0.50217]
[1726637641550,0.001646,60464.0,60463.0,0.83295]
[1726637642024,0.001646,60464.0,60463.0,0.93241658]
[1726637642739,0.330727,60473.0,60468.0,0.165375]
[1726637643218,0.165365,60473.0,60469.0,0.165373]
[1726637643714,0.165366,60472.0,60468.0,0.165376]
[1726637643931,0.165366,60472.0,60468.0,0.166376]
[1726637644361,0.165366,60472.0,60468.0,0.167376]
[1726637644585,0.165366,60472.0,60468.0,0.166376]
[1726637644814,0.165366,60472.0,60469.0,0.001]
[1726637645527,0.16123731,60472.0,60469.0,0.001]
[1726637645976,0.16723731,60472.0,60469.0,0.001]
[1726637646122,0.16723731,60472.0,60468.0,0.165376]
[1726637646366,0.012,60472.0,60469.0,0.165372]
[1726637646584,0.006,60472.0,60469.0,0.165372]
[1726637646778,0.165363,60473.0,60469.0,0.165372]
[1726637647007,0.0162163,60471.0,60469.0,0.165372]
[1726637647151,0.012,60472.0,60469.0,0.165372]
[1726637647502,0.0162163,60470.0,60469.0,0.165372]
[1726637647719,0.006,60472.0,60469.0,0.165372]
[1726637647933,0.01620494,60470.0,60469.0,0.166372]
[1726637648353,0.01621251,60470.0,60469.0,0.001]
[1726637648770,0.007,60473.0,60469.0,0.166373]
[1726637649008,0.01621251,60470.0,60469.0,0.167373]
[1726637649225,0.179363,60473.0,60469.0,0.167373]
[1726637649434,0.179363,60473.0,60469.0,0.166373]
[1726637649640,0.003,60470.0,60469.0,0.166373]
[1726637649856,0.003,60470.0,60469.0,0.165373]
[1726637650279,0.007,60470.0,60469.0,0.165373]
[1726637650486,0.004,60470.0,60469.0,0.165373]
[1726637650690,0.004,60470.0,60469.0,0.166373]
[1726637651561,0.02021251,60470.0,60469.0,0.166373]
[1726637651781,0.004,60470.0,60469.0,0.001]
[1726637652002,0.02021251,60470.0,60469.0,0.001]
[1726637652726,0.02021251,60470.0,60468.0,0.165376]
[1726637652950,0.02021251,60470.0,60469.0,0.165373]
[1726637653166,0.02321251,60470.0,60469.0,0.165373]
[1726637653598,0.01921251,60470.0,60469.0,0.165373]
[1726637653822,0.02003551,60470.0,60469.0,0.165373]
[1726637654101,0.02103551,60470.0,60469.0,0.165373]
[1726637654314,0.02303551,60470.0,60469.0,0.165373]
[1726637654739,0.01903551,60470.0,60469.0,0.165373]
[1726637654955,0.02203551,60470.0,60469.0,0.165373]
[1726637657106,0.02203551,60470.0,60469.0,0.49612]
[1726637657741,0.01903551,60470.0,60469.0,0.49612]
[1726637657966,0.01703551,60470.0,60469.0,0.49612]
[1726637658175,0.01903551,60470.0,60469.0,0.165373]
[1726637658389,0.01903551,60470.0,60469.0,0.49612]
[1726637658390,0.02003551,60470.0,60469.0,0.49612]
[1726637658606,0.003823,60470.0,60469.0,0.49612]
[1726637659489,0.001823,60470.0,60469.0,0.49612]
[1726637659701,0.000823,60470.0,60469.0,0.49612]
[1726637659916,0.001823,60470.0,60469.0,0.49612]
[1726637662879,0.001823,60470.0,60469.0,0.826867]
[1726637663523,0.001823,60470.0,60469.0,1.32066767]
[1726637664621,0.000823,60470.0,60469.0,1.37018965]
[1726637664837,0.000823,60470.0,60469.0,1.37118965]
[1726637665704,0.000823,60470.0,60469.0,1.39595064]
[1726637666831,0.000823,60470.0,60469.0,1.39759664]
[1726637667699,0.000823,60470.0,60469.0,1.32331367]
[1726637671639,0.000823,60470.0,60469.0,1.42235763]
[1726637672076,0.000823,60470.0,60469.0,1.75310463]
[1726637672283,0.000823,60470.0,60469.0,1.65606067]
[1726637674805,0.000823,60470.0,60469.0,1.66268667]
[1726637675636,0.000823,60470.0,60469.0,1.66068667]
[1726637684833,0.000823,60470.0,60469.0,1.78460613]
[1726637689547,0.000823,60470.0,60469.0,1.78660613]
[1726637692683,0.000823,60470.0,60469.0,1.78660549]
[1726637693385,0.000823,60470.0,60469.0,1.78460549]
[1726637694190,0.000823,60470.0,60469.0,1.66068667]
[1726637694999,0.000823,60470.0,60469.0,1.32993967]
[1726637700182,0.000823,60470.0,60469.0,1.66068667]
[1726637700396,0.000823,60470.0,60469.0,1.32993967]
[1726637700829,0.000823,60470.0,60469.0,1.66068667]
[1726637701858,0.000823,60470.0,60469.0,1.32993967]
[1726637702833,0.000823,60470.0,60469.0,1.42940625]
[1726637703067,0.000823,60470.0,60469.0,1.4539347]
[1726637703752,0.000823,60470.0,60469.0,1.32993967]
[1726637704433,0.000823,60470.0,60469.0,1.4539347]
[1726637704669,0.095023,60470.0,60469.0,0.54837352]
[1726637704902,0.095023,60470.0,60469.0,0.002646]
[1726637705462,0.11138287,60470.0,60469.0,0.002646]
[1726637705726,0.27675387,60470.0,60469.0,0.002646]
[1726637705937,0.60749587,60470.0,60469.0,0.001646]
[1726637706160,0.93823787,60470.0,60469.0,0.001646]
[1726637706392,1.01513787,60470.0,60469.0,0.001646]
[1726637706655,1.01513787,60470.0,60463.0,0.001646]
[1726637706656,0.671562,60464.0,60463.0,0.001646]
[1726637706881,0.671562,60464.0,60461.0,0.001646]
[1726637706882,0.496179,60462.0,60461.0,0.001646]
[1726637707107,1.251051,60462.0,60461.0,0.001646]
[1726637707336,0.920265,60462.0,60461.0,0.001646]
[1726637707566,0.93650742,60462.0,60461.0,0.001646]
[1726637708265,0.96245986,60462.0,60461.0,0.001646]
[1726637709636,0.97045986,60462.0,60461.0,0.002646]
[1726637710324,0.97845986,60462.0,60461.0,0.003646]
[1726637719627,1.37794527,60462.0,60461.0,0.003646]
[1726637719844,1.37794527,60462.0,60457.0,0.000823]
[1726637719845,0.89507858,60458.0,60457.0,0.000823]
[1726637720066,1.29313313,60458.0,60457.0,0.000823]
[1726637720294,1.6403629,60458.0,60457.0,0.000823]
[1726637722757,1.6543629,60458.0,60457.0,0.001823]
[1726637722981,1.6683629,60458.0,60457.0,0.002823]
[1726637724098,1.54589632,60458.0,60457.0,0.002823]
[1726637724324,1.6453629,60458.0,60457.0,0.002823]
[1726637727467,1.67131901,60458.0,60457.0,0.002823]
[1726637732087,2.02512701,60458.0,60457.0,0.002823]
[1726637732349,2.05512701,60458.0,60457.0,0.002823]
[1726637732819,2.05712701,60458.0,60457.0,0.002823]
[1726637733525,0.0946,60450.0,60430.0,0.466823]
[1726637733747,0.165475,60432.0,60430.0,0.000823]
[1726637733968,0.496425,60432.0,60430.0,0.000823]
[1726637734196,0.51232435,60432.0,60430.0,0.000823]
[1726637735133,0.51232435,60432.0,60431.0,0.004823]
[1726637736011,0.84327435,60432.0,60431.0,0.004823]
[1726637736476,0.84327435,60432.0,60431.0,0.000823]
[1726637736691,0.84927435,60432.0,60431.0,0.001823]
[1726637737126,0.84827435,60432.0,60431.0,0.001823]
[1726637737815,0.85227435,60432.0,60431.0,0.001823]
[1726637738033,1.18322435,60432.0,60431.0,0.001823]
[1726637739383,0.85227435,60432.0,60431.0,0.001823]
[1726637742271,0.86539857,60432.0,60431.0,0.001823]
[1726637747028,0.03802357,60432.0,60431.0,0.001823]
[1726637747721,0.20349857,60432.0,60431.0,0.001823]
[1726637748227,0.03802357,60432.0,60431.0,0.001823]
[1726637748484,0.03802357,60432.0,60431.0,0.498255]
[1726637748734,0.009,60432.0,60431.0,0.498255]
[1726637749483,0.009,60432.0,60431.0,1.32321867]
[1726637750472,0.005,60432.0,60431.0,1.32321867]
[1726637750708,0.005,60432.0,60431.0,1.42171867]
[1726637750985,0.0801,60454.0,60447.0,0.330867]
[1726637751249,0.0801,60454.0,60431.0,0.59333167]
[1726637751250,0.02678033,60461.0,60449.0,0.330856]
[1726637751483,0.02678033,60461.0,60447.0,0.330864]
[1726637751708,0.02678033,60461.0,60453.0,0.165417]
[1726637751935,0.02678033,60461.0,60451.0,0.165422]
[1726637751936,0.02911785,60460.0,60451.0,0.165422]
[1726637752161,0.02911785,60460.0,60450.0,0.165424]
[1726637752162,0.06952015,60459.0,60450.0,0.165424]
[1726637752361,0.01,60454.0,60446.0,0.165435]
[1726637752619,0.01,60454.0,60441.0,0.330897]
[1726637752620,0.01,60454.0,60439.0,0.99262151]
[1726637752845,0.165408,60457.0,60445.0,0.165438]
[1726637753097,0.0927,60452.0,60434.0,0.04941644]
[1726637753318,0.0927,60452.0,60433.0,0.07412466]
[1726637753319,0.25812,60452.0,60441.0,0.165448]
[1726637753539,0.02910967,60451.0,60442.0,0.165447]
[1726637754215,0.02910967,60451.0,60445.0,0.165438]
[1726637754428,0.02910967,60451.0,60447.0,0.165433]
[1726637755072,0.02910967,60451.0,60445.0,0.496312]
[1726637755288,0.011,60451.0,60445.0,0.330874]
[1726637755517,0.02910966,60450.0,60445.0,0.330874]
[1726637755737,0.0927,60452.0,60445.0,0.330874]
[1726637755957,0.02910966,60449.0,60445.0,0.330874]
[1726637756181,0.008,60451.0,60447.0,0.165433]
[1726637756473,0.02910966,60448.0,60447.0,0.165433]
[1726637756698,0.009,60451.0,60447.0,0.165433]
[1726637756915,0.0291113,60448.0,60447.0,0.165433]
[1726637757128,0.009,60451.0,60447.0,0.165433]
[1726637757573,0.009,60451.0,60445.0,0.330874]
[1726637757574,0.02910966,60450.0,60448.0,0.16543]
[1726637758252,0.019,60452.0,60448.0,0.16543]
[1726637758471,0.02910966,60449.0,60448.0,0.16543]
[1726637758692,0.008,60450.0,60449.0,0.165428]
[1726637759148,0.006,60450.0,60449.0,0.165428]
[1726637759384,0.016,60450.0,60449.0,0.165428]
[1726637759610,0.0291113,60450.0,60443.0,0.330888]
[1726637759834,0.009,60450.0,60446.0,0.165435]
[1726637760052,0.009,60450.0,60443.0,0.330888]
[1726637760053,0.02910966,60449.0,60447.0,0.165432]
[1726637760815,0.02910966,60449.0,60440.0,0.330903]
[1726637761474,0.005,60450.0,60431.0,0.99346915]
[1726637761691,0.005,60450.0,60449.0,0.165428]
[1726637761916,0.02595742,60453.0,60449.0,0.165428]
[1726637762376,0.004,60449.0,60446.0,0.165434]
[1726637762595,0.004,60449.0,60444.0,0.330883]
[1726637762596,0.004,60449.0,60447.0,0.165433]
[1726637762893,0.006,60450.0,60448.0,0.165431]
[1726637764084,0.165422,60452.0,60448.0,0.165431]
[1726637764345,0.165429,60449.0,60445.0,0.165437]
[1726637764600,0.165424,60451.0,60446.0,0.165435]
[1726637764855,0.008,60449.0,60447.0,0.165434]
[1726637765323,0.165424,60451.0,60447.0,0.165434]
[1726637765597,0.26151224,60453.0,60449.0,0.00413069]
[1726637765856,0.165424,60451.0,60449.0,0.00413069]
[1726637766584,0.59235224,60453.0,60449.0,0.00413069]
[1726637766845,0.165421,60452.0,60449.0,0.00413069]
[1726637767081,0.19453067,60452.0,60449.0,0.00413069]
[1726637767825,0.165423,60451.0,60449.0,0.00413069]
[1726637768054,0.165425,60450.0,60449.0,0.00413069]
[1726637768510,0.0291113,60450.0,60449.0,0.00413069]
[1726637768745,0.173422,60452.0,60449.0,0.00413069]
[1726637769008,0.0291113,60450.0,60449.0,0.00413069]
[1726637769281,0.172422,60452.0,60449.0,0.00413069]
[1726637769512,0.02912097,60450.0,60449.0,0.00413069]
[1726637769727,0.005,60450.0,60449.0,0.00413069]
[1726637769947,0.03412097,60450.0,60449.0,0.00413069]
[1726637770174,0.005,60450.0,60449.0,0.00413069]
[1726637770417,0.03412097,60450.0,60449.0,0.00413069]
[1726637770663,0.005,60450.0,60449.0,0.00413069]
[1726637770897,0.011,60450.0,60449.0,0.00413069]
[1726637771115,0.03512097,60450.0,60449.0,0.00413069]
[1726637772031,1.44139325,60450.0,60449.0,0.00413069]
[1726637772261,1.44139325,60450.0,60431.0,0.000823]
[1726637772262,0.33089,60443.0,60431.0,0.000823]
[1726637772537,0.165464,60437.0,60431.0,0.000823]
[1726637772819,0.0996,60437.0,60431.0,0.1663]
[1726637773081,0.03001298,60436.0,60431.0,0.1663]
[1726637773325,0.19547798,60436.0,60431.0,0.1663]
[1726637773597,0.19547798,60436.0,60431.0,0.000823]
[1726637774607,0.19547798,60436.0,60431.0,0.1663]
[1726637775546,0.165467,60435.0,60431.0,0.1663]
[1726637775862,0.165475,60432.0,60431.0,0.000823]
[1726637776340,0.02996814,60432.0,60431.0,0.000823]
[1726637776574,0.02996814,60432.0,60431.0,0.1663]
[1726637776809,0.165465,60436.0,60431.0,0.1663]
[1726637777046,0.02996814,60432.0,60431.0,0.000823]
[1726637777277,0.16547,60434.0,60431.0,0.000823]
[1726637777515,0.03096814,60432.0,60431.0,0.000823]
[1726637777761,0.165472,60433.0,60431.0,0.000823]
[1726637778004,0.02996814,60432.0,60431.0,0.000823]
[1726637780261,0.05593091,60432.0,60431.0,0.000823]
[1726637780528,0.05993091,60432.0,60431.0,0.000823]
[1726637780766,0.06293091,60432.0,60431.0,0.000823]
[1726637781261,0.05993091,60432.0,60431.0,0.000823]
[1726637781519,0.06293091,60432.0,60431.0,0.000823]
[1726637781763,0.22840591,60432.0,60431.0,0.000823]
[1726637783265,0.22440591,60432.0,60431.0,0.000823]
[1726637783508,0.22640591,60432.0,60431.0,0.000823]
[1726637784508,0.23140591,60432.0,60431.0,0.000823]
[1726637784984,0.22640591,60432.0,60431.0,0.000823]
[1726637785218,0.06493091,60432.0,60431.0,0.000823]
[1726637785446,0.23040591,60432.0,60431.0,0.000823]
[1726637786820,0.06493091,60432.0,60431.0,0.000823]
[1726637787039,0.23040591,60432.0,60431.0,0.000823]
[1726637787483,0.56135591,60432.0,60431.0,0.000823]
[1726637795277,1.38896065,60432.0,60431.0,0.000823]
[1726637795511,1.90894788,60432.0,60431.0,0.000823]
[1726637795948,1.98384788,60432.0,60431.0,0.000823]
[1726637796388,1.98784788,60432.0,60431.0,0.000823]
[1726637796879,1.99784788,60432.0,60431.0,0.000823]
[1726637797106,1.98784788,60432.0,60431.0,0.000823]
[1726637797338,1.796797,60431.0,60430.0,0.000823]
[1726637797623,1.8696702,60431.0,60430.0,0.000823]
[1726637797839,1.89946867,60431.0,60430.0,0.000823]
[1726637798068,2.05131331,60431.0,60430.0,0.000823]
[1726637798780,2.07728376,60431.0,60430.0,0.000823]
[1726637799230,2.09128376,60431.0,60430.0,0.000823]
[1726637799666,2.10528376,60431.0,60430.0,0.000823]
[1726637803092,2.07931331,60431.0,60430.0,0.000823]
[1726637804491,2.06531331,60431.0,60430.0,0.000823]
[1726637804924,2.25381331,60431.0,60430.0,0.000823]
[1726637805347,2.23981331,60431.0,60430.0,0.000823]
[1726637805588,2.74785389,60431.0,60430.0,0.000823]
[1726637806045,2.73385389,60431.0,60430.0,0.000823]
[1726637806398,2.57076831,60431.0,60430.0,0.000823]
[1726637806604,2.59673974,60431.0,60430.0,0.000823]
[1726637806847,2.61073974,60431.0,60430.0,0.000823]
[1726637807042,2.58273974,60431.0,60430.0,0.000823]
[1726637807285,2.59673974,60431.0,60430.0,0.000823]
[1726637807480,2.61073974,60431.0,60430.0,0.000823]
[1726637809988,2.36025064,60426.0,60425.0,0.000823]
[1726637810202,2.43353461,60426.0,60425.0,0.000823]
[1726637810404,2.46317192,60426.0,60425.0,0.000823]
[1726637810841,2.13218892,60426.0,60425.0,0.000823]
[1726637811059,2.14618892,60426.0,60425.0,0.000823]
[1726637811923,2.16018892,60426.0,60425.0,0.000823]
[1726637814886,2.33468892,60426.0,60425.0,0.000823]
[1726637815119,2.16018892,60426.0,60425.0,0.000823]
[1726637815830,2.1700521,60426.0,60425.0,0.000823]
[1726637816286,2.19602484,60426.0,60425.0,0.000823]
[1726637818100,2.30693186,60426.0,60425.0,0.000823]
[1726637818563,2.47482928,60426.0,60425.0,0.000823]
[1726637818784,2.14384628,60426.0,60425.0,0.000823]
[1726637819690,2.14384628,60426.0,60402.0,0.0048643]
[1726637819691,0.03,60415.0,60402.0,0.0048643]
[1726637819926,0.90979236,60415.0,60402.0,0.0048643]
[1726637820164,2.00258744,60415.0,60402.0,0.0048643]
[1726637820380,2.02856426,60415.0,60402.0,0.0048643]
[1726637820898,1.94706426,60415.0,60402.0,0.0048643]
[1726637821592,1.95676369,60415.0,60402.0,0.0048643]
[1726637821803,1.97076369,60415.0,60402.0,0.0048643]
[1726637822036,1.97076369,60415.0,60414.0,0.004826]
[1726637822272,1.95676369,60415.0,60414.0,0.004826]
[1726637822703,1.94276369,60415.0,60414.0,0.004826]
[1726637822937,1.93078687,60415.0,60414.0,0.004826]
[1726637823179,1.91678687,60415.0,60414.0,0.004826]
[1726637823639,1.93278687,60415.0,60414.0,0.004826]
[1726637824304,1.91878687,60415.0,60414.0,0.004826]
[1726637824521,1.93278687,60415.0,60414.0,0.004826]
[1726637824768,1.93078687,60415.0,60414.0,0.004826]
[1726637824992,2.00848687,60415.0,60414.0,0.004826]
[1726637825460,2.02448687,60415.0,60414.0,0.004826]
[1726637825945,2.03848687,60415.0,60414.0,0.004826]
[1726637826168,2.06775907,60415.0,60414.0,0.004826]
[1726637826605,2.05375907,60415.0,60414.0,0.004826]
[1726637826828,2.06775907,60415.0,60414.0,0.004826]
[1726637827049,2.08175907,60415.0,60414.0,0.004826]
[1726637827720,2.06775907,60415.0,60414.0,0.004826]
[1726637827936,2.08175907,60415.0,60414.0,0.004826]
[1726637828706,2.07975907,60415.0,60414.0,0.004826]
[1726637829180,2.08175907,60415.0,60414.0,0.004826]
[1726637829434,2.07975907,60415.0,60414.0,0.004826]
[1726637831375,2.08175907,60415.0,60414.0,0.004826]
[1726637833437,2.05578206,60415.0,60414.0,0.004826]
[1726637834105,2.05378206,60415.0,60414.0,0.004826]
[1726637834350,2.05578206,60415.0,60414.0,0.004826]
[1726637835952,2.05378206,60415.0,60414.0,0.004826]
[1726637836396,2.07975963,60415.0,60414.0,0.004826]
[1726637836621,1.98805963,60415.0,60414.0,0.004826]
[1726637837279,1.99005963,60415.0,60414.0,0.004826]
[1726637837504,1.98805963,60415.0,60414.0,0.004826]
[1726637838382,1.99005963,60415.0,60414.0,0.004826]
[1726637838852,1.98805963,60415.0,60414.0,0.004826]
[1726637843243,1.96408206,60415.0,60414.0,0.004826]
[1726637843945,1.31837298,60415.0,60414.0,0.004826]
[1726637844187,1.41803906,60415.0,60414.0,0.004826]
[1726637845296,1.51803906,60415.0,60414.0,0.004826]
[1726637845562,1.49003906,60415.0,60414.0,0.004826]
[1726637845780,1.50403906,60415.0,60414.0,0.004826]
[1726637846066,1.51803906,60415.0,60414.0,0.004826]
[1726637846300,1.43464891,60415.0,60414.0,0.004826]
[1726637846524,1.43464891,60415.0,60414.0,0.095926]
[1726637846525,0.91117781,60415.0,60414.0,0.095926]
[1726637846749,0.91117781,60415.0,60414.0,0.004826]
[1726637846750,1.24222081,60415.0,60414.0,0.004826]
[1726637846968,0.91117781,60415.0,60414.0,0.004826]
[1726637847195,0.89717781,60415.0,60414.0,0.004826]
[1726637847427,1.22822081,60415.0,60414.0,0.004826]
[1726637847655,1.01117781,60415.0,60414.0,0.004826]
[1726637848556,0.99717781,60415.0,60414.0,0.004826]
[1726637848852,0.99717781,60415.0,60414.0,0.099326]
[1726637848853,0.08357081,60415.0,60414.0,0.099326]
[1726637849088,0.08357081,60415.0,60414.0,0.677699]
[1726637849089,0.04852558,60415.0,60414.0,0.677699]
[1726637849309,0.028,60415.0,60414.0,1.17180167]
[1726637849761,0.014,60415.0,60414.0,1.17180167]
[1726637850001,0.028,60415.0,60414.0,1.17180167]
[1726637850222,0.014,60415.0,60414.0,1.17180167]
[1726637850477,0.003,60415.0,60414.0,1.17180167]
[1726637850691,0.02896933,60415.0,60414.0,1.17180167]
[1726637850904,0.03096933,60415.0,60414.0,1.17180167]
[1726637851390,0.005,60415.0,60414.0,1.17180167]
[1726637852489,0.005,60415.0,60414.0,0.50970367]
[1726637852752,0.005,60415.0,60414.0,0.84075267]
[1726637853177,0.02555571,60415.0,60414.0,0.84075267]
[1726637853382,0.005,60415.0,60414.0,0.84075267]
[1726637853619,0.02555571,60415.0,60414.0,0.84075267]
[1726637853824,0.005,60415.0,60414.0,0.34665]
[1726637854042,0.005,60415.0,60414.0,0.181126]
[1726637854466,0.02555571,60415.0,60414.0,0.181126]
[1726637854908,0.52211971,60415.0,60414.0,0.004826]
[1726637859794,0.19107671,60415.0,60414.0,0.004826]
[1726637860725,0.02555571,60415.0,60414.0,0.004826]
[1726637861169,0.19107671,60415.0,60414.0,0.004826]
[1726637862055,0.52211971,60415.0,60414.0,0.004826]
[1726637862274,0.85316271,60415.0,60414.0,0.004826]
[1726637862503,1.18420571,60415.0,60414.0,0.004826]
[1726637863169,1.18220571,60415.0,60414.0,0.004826]
[1726637863604,1.18520571,60415.0,60414.0,0.004826]
[1726637864077,1.19220571,60415.0,60414.0,0.004826]
[1726637865265,1.18620571,60415.0,60414.0,0.004826]
[1726637865480,1.18520571,60415.0,60414.0,0.004826]
[1726637865693,1.19820571,60415.0,60414.0,0.004826]
[1726637865910,1.21817972,60415.0,60414.0,0.004826]
[1726637866641,1.23017972,60415.0,60414.0,0.004826]
[1726637868640,1.30531263,60415.0,60414.0,0.004826]
[1726637869299,1.39971263,60415.0,60414.0,0.004826]
[1726637870190,1.96455563,60415.0,60414.0,0.004826]
[1726637870405,2.02655563,60415.0,60414.0,0.004826]
[1726637870857,2.35759863,60415.0,60414.0,0.004826]
[1726637871100,2.35759863,60415.0,60411.0,0.0002]
[1726637871101,1.58177,60412.0,60411.0,0.0002]
[1726637871322,2.30663449,60412.0,60411.0,0.0002]
[1726637871571,2.3271184,60412.0,60411.0,0.0002]
[1726637873133,2.3411184,60412.0,60411.0,0.0002]
[1726637873350,2.3551184,60412.0,60411.0,0.0002]
[1726637875369,2.3411184,60412.0,60411.0,0.0002]
[1726637875581,2.3271184,60412.0,60411.0,0.0002]
[1726637875806,2.3411184,60412.0,60411.0,0.0002]
[1726637875973,2.3551184,60412.0,60411.0,0.0002]
[1726637879633,2.0220584,60412.0,60411.0,0.0002]
[1726637880304,2.0240584,60412.0,60411.0,0.0002]
[1726637880538,2.0080584,60412.0,60411.0,0.0002]
[1726637880946,2.0100584,60412.0,60411.0,0.001023]
[1726637881152,2.0080584,60412.0,60411.0,0.001023]
[1726637881355,1.9780584,60412.0,60411.0,0.001023]
[1726637881769,1.9920584,60412.0,60411.0,0.001023]
[1726637881982,1.9480584,60412.0,60411.0,0.001023]
[1726637882370,1.9640584,60412.0,60411.0,0.001023]
[1726637882579,1.9620584,60412.0,60411.0,0.001023]
[1726637885615,1.96002354,60412.0,60411.0,0.001023]
[1726637886266,1.98600095,60412.0,60411.0,0.001023]
[1726637886953,1.53117581,60412.0,60411.0,0.001023]
[1726637887192,1.00211132,60412.0,60411.0,0.001023]
[1726637887432,0.57105132,60412.0,60411.0,0.001023]
[1726637887894,0.88811132,60412.0,60411.0,0.001023]
[1726637888135,0.23999132,60412.0,60411.0,0.001023]
[1726637888355,0.55705132,60412.0,60411.0,0.001023]
[1726637889090,0.57105132,60412.0,60411.0,0.001023]
[1726637889538,0.54305132,60412.0,60411.0,0.001023]
[1726637890051,0.56805132,60412.0,60411.0,0.001023]
[1726637896399,0.54207391,60412.0,60411.0,0.001023]
[1726637897142,0.87293469,60412.0,60411.0,0.001023]
[1726637905485,0.87458069,60412.0,60411.0,0.001023]
[1726637908761,1.20564069,60412.0,60411.0,0.001023]
[1726637909926,1.19264069,60412.0,60411.0,0.001023]
[1726637910186,1.20664069,60412.0,60411.0,0.001023]
[1726637911428,1.19464069,60412.0,60411.0,0.001023]
[1726637911671,1.20864069,60412.0,60411.0,0.001023]
[1726637911913,1.21869626,60412.0,60411.0,0.001023]
[1726637912679,0.87758069,60412.0,60411.0,0.001023]
[1726637914323,1.20864069,60412.0,60411.0,0.001023]
[1726637915341,0.87758069,60412.0,60411.0,0.001023]
[1726637916579,0.21546069,60412.0,60411.0,0.001023]
[1726637917066,0.54652069,60412.0,60411.0,0.001023]
[1726637923058,0.87758069,60412.0,60411.0,0.001023]
[1726637927929,0.21546069,60412.0,60411.0,0.001023]
[1726637928370,0.54652069,60412.0,60411.0,0.001023]
[1726637930658,0.21546069,60412.0,60411.0,0.001023]
[1726637930864,0.54652069,60412.0,60411.0,0.001023]
[1726637934580,0.21546069,60412.0,60411.0,0.001023]
[1726637934830,0.54652069,60412.0,60411.0,0.001023]
[1726637941682,0.04993069,60412.0,60411.0,0.00305786]
[1726637941916,0.04993069,60412.0,60411.0,0.49965486]
[1726637942158,0.04993069,60412.0,60411.0,0.59025486]
[1726637942388,0.029646,60412.0,60411.0,0.59025486]
[1726637943413,0.001646,60412.0,60411.0,0.59025486]
[1726637943658,0.001646,60412.0,60411.0,1.02098594]
[1726637943659,0.025646,60412.0,60411.0,1.02098594]
[1726637944613,0.025646,60412.0,60411.0,1.59290461]
[1726637944838,0.025646,60412.0,60411.0,1.64261021]
[1726637944839,0.013646,60412.0,60411.0,1.64261021]
[1726637945071,0.006646,60412.0,60411.0,1.59290461]
[1726637945329,0.011646,60412.0,60411.0,1.64259141]
[1726637945584,0.006646,60412.0,60411.0,1.59290461]
[1726637945833,0.006646,60412.0,60411.0,1.31150694]
[1726637946080,0.006646,60412.0,60411.0,1.26283961]
[1726637946338,0.006646,60412.0,60411.0,1.26183961]
[1726637946563,0.006646,60412.0,60411.0,1.59290461]
[1726637946800,0.001646,60412.0,60411.0,1.26283961]
[1726637947023,0.001646,60412.0,60411.0,1.26383961]
[1726637947252,0.001646,60412.0,60411.0,1.59490461]
[1726637947500,0.001646,60412.0,60411.0,1.26383961]
[1726637947729,0.001646,60412.0,60411.0,1.59390461]
[1726637947955,0.001646,60412.0,60411.0,1.26383961]
[1726637948458,0.001646,60412.0,60411.0,1.16417353]
[1726637948683,0.001646,60412.0,60411.0,1.26383961]
[1726637949581,0.001646,60412.0,60411.0,1.59490461]
[1726637949806,0.001646,60412.0,60411.0,1.26383961]